bitfinex/quotes_BTCUSD_20251221
["timestamp","ask_amount","ask_price","bid_price","bid_amount"]
[1766297947857,0.10238,88320.0,88312.0,0.01132348]
[1766297948073,0.10238,88320.0,88309.0,0.25669387]
[1766297948279,0.10238,88320.0,88310.0,0.01132374]
[1766297948501,0.10238,88320.0,88311.0,0.01132361]
[1766297948713,0.10238,88320.0,88310.0,0.01132374]
[1766297949953,0.10238,88320.0,88312.0,0.01132348]
[1766297952059,0.10238,88320.0,88311.0,0.01132361]
[1766297952912,0.10238,88320.0,88310.0,0.01132374]
[1766297953128,0.10238,88320.0,88309.0,0.25669387]
[1766297957847,0.10238,88320.0,88309.0,0.24537]
[1766297958230,0.10238,88320.0,88309.0,0.25669387]
[1766297958431,0.10238,88320.0,88309.0,0.24537]
[1766297959453,0.10238,88320.0,88309.0,0.25669387]
[1766297960067,0.10238,88320.0,88309.0,0.24537]
[1766297960502,0.10238,88320.0,88309.0,0.25669387]
[1766297961233,0.10238,88320.0,88309.0,0.24537]
[1766297961675,0.10238,88320.0,88309.0,0.25669387]
[1766297963194,0.10238,88320.0,88309.0,0.24537]
[1766297963396,0.10238,88320.0,88309.0,0.25669387]
[1766297964606,0.10238,88320.0,88309.0,0.24537]
[1766297967404,0.13640766,88320.0,88309.0,0.24537]
[1766297978322,0.16090356,88320.0,88309.0,0.24537]
[1766297978506,0.13640766,88320.0,88309.0,0.24537]
[1766297978706,0.25793766,88320.0,88309.0,0.12584]
[1766297979779,0.26926012,88320.0,88309.0,0.12584]
[1766297979983,0.25793766,88320.0,88309.0,0.12584]
[1766297982705,0.26926012,88320.0,88309.0,0.12584]
[1766297982997,0.12153,88311.0,88305.0,0.03240922]
[1766297983209,0.00055,88305.0,88299.0,0.00568]
[1766297983417,0.12153,88306.0,88299.0,0.00568]
[1766297983822,0.03403191,88305.0,88299.0,0.00568]
[1766297985293,2.91e-06,88305.0,88301.0,0.12181]
[1766297985534,2.91e-06,88305.0,88302.0,0.24212]
[1766297987278,2.91e-06,88305.0,88302.0,0.12181]
[1766297989879,2.91e-06,88305.0,88302.0,0.121261]
[1766297991891,0.00572458,88311.0,88302.0,0.121261]
[1766297992335,0.03403191,88310.0,88302.0,0.121261]
[1766298001250,0.03403191,88310.0,88303.0,0.12031]
[1766298001463,0.03403191,88310.0,88299.0,0.00568]
[1766298013430,0.03403191,88310.0,88301.0,0.11361]
[1766298013639,0.03403191,88310.0,88302.0,0.11707]
[1766298013836,0.03403191,88310.0,88299.0,0.01700515]
[1766298014149,0.03403191,88310.0,88300.0,0.23068]
[1766298014511,0.03403191,88310.0,88299.0,0.00568]
[1766298014708,0.03403191,88310.0,88300.0,0.23068]
[1766298015820,0.03403191,88310.0,88299.0,0.00568]
[1766298016223,0.03403191,88310.0,88300.0,0.23068]
[1766298016564,0.03403191,88310.0,88299.0,0.00568]
[1766298017197,0.03403191,88310.0,88300.0,0.23068]
[1766298017381,0.03403191,88310.0,88299.0,0.00568]
[1766298017702,0.03403191,88310.0,88300.0,0.23068]
[1766298021199,0.03403191,88310.0,88299.0,0.00568]
[1766298021398,0.03403191,88310.0,88300.0,0.23068]
[1766298021661,0.03403191,88310.0,88299.0,0.00568]
[1766298021787,0.03403191,88310.0,88299.0,0.01700515]
[1766298021990,0.03403191,88310.0,88300.0,0.23068]
[1766298022187,0.03403191,88310.0,88301.0,0.23068]
[1766298025198,0.03403191,88310.0,88300.0,0.23281]
[1766298025373,0.03403191,88310.0,88299.0,0.01700515]
[1766298025912,0.03403191,88310.0,88301.0,0.23281]
[1766298026114,0.03403191,88310.0,88302.0,0.23281]
[1766298026318,0.00568,88315.0,88307.0,0.11653]
[1766298026520,0.03403048,88313.0,88309.0,0.23281]
[1766298026723,0.00568,88315.0,88309.0,0.23281]
[1766298026724,0.00568,88315.0,88309.0,0.11628]
[1766298027056,0.03402994,88314.0,88309.0,0.11628]
[1766298027678,0.03402994,88314.0,88309.0,0.11309]
[1766298028492,0.03402994,88314.0,88309.0,0.112541]
[1766298031592,0.00568,88314.0,88309.0,0.112541]
[1766298033570,0.00568,88314.0,88270.0,0.00199998]
[1766298033571,0.0002,88323.0,88316.0,0.11628]
[1766298033775,0.01132259,88319.0,88316.0,4.458e-05]
[1766298033974,0.12164,88318.0,88316.0,4.58e-06]
[1766298034322,0.12164,88318.0,88313.0,0.00568]
[1766298034323,0.01132297,88316.0,88313.0,0.00568]
[1766298034520,5.676e-05,88316.0,88313.0,0.01136]
[1766298034853,5.676e-05,88316.0,88313.0,0.010815]
[1766298035486,5.676e-05,88316.0,88313.0,0.005135]
[1766298037095,5.676e-05,88316.0,88311.0,0.03402747]
[1766298041182,5.676e-05,88316.0,88309.0,0.00568]
[1766298041183,0.11465676,88316.0,88309.0,0.00568]
[1766298041385,0.23102676,88316.0,88310.0,0.03402747]
[1766298047008,0.11465676,88316.0,88310.0,0.03402747]
[1766298054367,0.11642676,88316.0,88309.0,0.00568]
[1766298055792,5.676e-05,88316.0,88309.0,0.00568]
[1766298055996,0.11146676,88317.0,88309.0,0.00568]
[1766298058988,0.01132425,88319.0,88310.0,0.24559]
[1766298059194,0.01132425,88319.0,88311.0,0.12397]
[1766298059402,0.00568,88320.0,88311.0,0.24559]
[1766298059614,0.01700425,88320.0,88309.0,0.01700387]
[1766298059843,0.00568,88320.0,88311.0,0.24559]
[1766298063040,0.1146,88319.0,88306.0,0.01132182]
[1766298063248,0.000549,88311.0,88305.0,0.00568]
[1766298063460,0.06793948,88314.0,88305.0,0.00568]
[1766298063663,0.23097,88310.0,88305.0,0.00568]
[1766298066789,0.1146,88310.0,88305.0,0.00568]
[1766298071123,0.01132323,88314.0,88305.0,0.00568]
[1766298071245,0.1415831,88315.0,88305.0,0.00568]
[1766298071446,0.2645131,88315.0,88305.0,0.00568]
[1766298071894,0.25319,88315.0,88305.0,0.00568]
[1766298073503,0.25319,88315.0,88298.0,0.0340299]
[1766298073504,0.05661616,88314.0,88298.0,0.0340299]
[1766298073701,0.01132336,88313.0,88299.0,0.23599]
[1766298073944,0.01132323,88314.0,88299.0,0.23599]
[1766298074876,0.01132323,88314.0,88298.0,0.0397099]
[1766298075118,0.2645131,88315.0,88299.0,0.01132515]
[1766298075287,0.2645131,88315.0,88300.0,0.23599]
[1766298075991,0.25319,88315.0,88300.0,0.23599]
[1766298076164,0.01132323,88314.0,88300.0,0.23599]
[1766298076399,0.12293,88314.0,88300.0,0.23599]
[1766298076602,0.1569599,88314.0,88300.0,0.23599]
[1766298079041,0.1569599,88314.0,88301.0,0.11919]
[1766298083380,0.12293,88314.0,88301.0,0.11919]
[1766298089593,0.13425323,88314.0,88301.0,0.11919]
[1766298089801,0.01132374,88310.0,88300.0,0.1168]
[1766298089953,0.24745413,88307.0,88300.0,0.00568]
[1766298090161,0.23613,88307.0,88300.0,0.00568]
[1766298090600,0.24745413,88307.0,88300.0,0.0009421]
[1766298090817,0.23613,88307.0,88300.0,0.0009421]
[1766298091265,0.13064413,88307.0,88300.0,0.0009421]
[1766298091518,0.11681,88306.0,88300.0,0.0009421]
[1766298097670,0.11681,88306.0,88296.0,0.00568]
[1766298099767,0.0453564,88309.0,88297.0,0.24251]
[1766298100097,0.011324,88308.0,88297.0,0.24251]
[1766298100605,0.011324,88308.0,88297.0,0.11947]
[1766298100791,0.0453564,88309.0,88298.0,0.12304]
[1766298103706,0.03403253,88309.0,88298.0,0.12304]
[1766298105113,0.15772253,88309.0,88297.0,0.11947]
[1766298105476,0.12347,88308.0,88298.0,0.24251]
[1766298112098,0.16800997,88308.0,88298.0,0.24251]
[1766298112706,0.12347,88308.0,88298.0,0.24251]
[1766298115381,0.03403253,88309.0,88296.0,0.00568]
[1766298115603,0.03403253,88309.0,88297.0,0.24251]
[1766298115997,0.03403253,88309.0,88296.0,0.00568]
[1766298116197,0.03403253,88309.0,88297.0,0.24251]
[1766298117133,0.03403253,88309.0,88296.0,0.00568]
[1766298117341,0.03403253,88309.0,88297.0,0.24251]
[1766298117555,0.03403253,88309.0,88296.0,0.00568]
[1766298117988,0.03403253,88309.0,88297.0,0.24251]
[1766298118172,0.03403253,88309.0,88296.0,0.00568]
[1766298118336,0.03403253,88309.0,88297.0,0.24251]
[1766298118545,0.03403253,88309.0,88296.0,0.00568]
[1766298118902,0.03403253,88309.0,88297.0,0.24251]
[1766298119327,0.03403253,88309.0,88296.0,0.00568]
[1766298119732,0.03403253,88309.0,88297.0,0.24251]
[1766298121099,0.0453564,88309.0,88297.0,0.24251]
[1766298121728,0.0453564,88309.0,88297.0,0.11947]
[1766298121989,0.03403253,88309.0,88298.0,0.12304]
[1766298122140,0.0453564,88309.0,88298.0,0.12304]
[1766298122495,0.03403253,88309.0,88298.0,0.12304]
[1766298124910,0.0453564,88309.0,88298.0,0.12304]
[1766298125114,0.06983686,88309.0,88298.0,0.12304]
[1766298125936,0.05851299,88309.0,88298.0,0.12304]
[1766298126236,0.06983686,88309.0,88298.0,0.12304]
[1766298130317,0.011324,88308.0,88298.0,0.12304]
[1766298130518,0.05851299,88309.0,88298.0,0.12304]
[1766298136795,0.05255199,88309.0,88298.0,0.12304]
[1766298139053,0.24218,88308.0,88297.0,0.11947]
[1766298139285,0.02448046,88307.0,88297.0,0.23908]
[1766298139423,0.14721046,88308.0,88297.0,0.23908]
[1766298145548,0.14721046,88308.0,88297.0,0.23937]
[1766298145684,0.14721046,88308.0,88296.0,0.00568]
[1766298145884,0.14721046,88308.0,88297.0,0.23774]
[1766298146079,0.14721046,88308.0,88296.0,0.00568]
[1766298146288,0.14721046,88308.0,88297.0,0.23774]
[1766298146515,0.14721046,88308.0,88296.0,0.00568]
[1766298146964,0.14721046,88308.0,88297.0,0.23774]
[1766298149960,0.23722,88307.0,88296.0,0.00568]
[1766298150302,0.1188,88307.0,88296.0,0.00568]
[1766298150576,0.23722,88307.0,88296.0,0.00568]
[1766298150795,0.011324,88308.0,88296.0,0.00568]
[1766298151224,0.24854413,88307.0,88296.0,0.00568]
[1766298151453,0.21566,88302.0,88289.0,0.05]
[1766298151651,0.35495329,88306.0,88265.0,0.12034]
[1766298151652,0.01132772,88279.0,88265.0,0.12034]
[1766298151873,0.16566,88288.0,88271.0,0.11466]
[1766298151874,0.01132849,88273.0,88271.0,0.11466]
[1766298152121,0.01132849,88273.0,88265.0,0.24342]
[1766298152322,0.01132874,88271.0,88265.0,0.00568]
[1766298152542,0.1188,88271.0,88265.0,0.00568]
[1766298152687,0.16566,88271.0,88265.0,0.00568]
[1766298153092,0.1997033,88271.0,88265.0,0.00568]
[1766298153292,0.21103204,88271.0,88265.0,0.00568]
[1766298153476,0.01132887,88270.0,88265.0,0.00568]
[1766298153656,0.1188,88268.0,88251.0,0.29443131]
[1766298153864,0.04118,88268.0,88252.0,0.00568]
[1766298154180,0.1188,88267.0,88252.0,0.13167118]
[1766298154380,0.1188,88267.0,88252.0,0.24342]
[1766298154715,0.118251,88267.0,88252.0,0.24342]
[1766298155095,0.118251,88267.0,88257.0,0.31653238]
[1766298155866,0.118251,88267.0,88253.0,0.11256]
[1766298156501,0.118251,88267.0,88254.0,0.11256]
[1766298157129,0.12958026,88267.0,88254.0,0.11256]
[1766298157332,0.05250926,88267.0,88254.0,0.11256]
[1766298157629,0.11845,88266.0,88254.0,0.11256]
[1766298159709,0.11845,88266.0,88255.0,0.00568]
[1766298159930,0.011329,88269.0,88256.0,0.11256]
[1766298160552,0.01132913,88268.0,88256.0,0.11256]
[1766298161224,0.011329,88269.0,88256.0,0.11256]
[1766298161777,0.01132913,88268.0,88256.0,0.11256]
[1766298162177,0.011329,88269.0,88256.0,0.11256]
[1766298162373,0.0340445,88267.0,88256.0,0.11256]
[1766298162603,0.01132939,88266.0,88256.0,0.11256]
[1766298162801,0.04537376,88267.0,88256.0,0.11256]
[1766298162953,0.01132926,88267.0,88256.0,0.11256]
[1766298163811,0.0340445,88266.0,88256.0,0.11256]
[1766298166050,0.0340445,88266.0,88256.0,0.22894]
[1766298170801,0.04537389,88266.0,88256.0,0.22894]
[1766298171014,0.01132951,88265.0,88256.0,0.22894]
[1766298171223,0.01132964,88264.0,88256.0,0.11256]
[1766298171407,0.0113299,88262.0,88256.0,0.11256]
[1766298171602,0.01133003,88261.0,88256.0,0.11256]
[1766298172053,0.03404604,88261.0,88256.0,0.11256]
[1766298172260,0.04537607,88261.0,88255.0,0.00568]
[1766298172561,0.01133041,88258.0,88255.0,0.00568]
[1766298172783,0.01133028,88259.0,88255.0,0.00568]
[1766298172922,0.01133016,88260.0,88255.0,0.00568]
[1766298173124,0.0113299,88262.0,88255.0,0.00568]
[1766298173355,0.03404802,88259.0,88255.0,0.00568]
[1766298174393,0.03404802,88259.0,88250.0,0.11256]
[1766298174546,0.03404802,88259.0,88251.0,0.00568]
[1766298175552,0.03404802,88259.0,88251.0,0.11824]
[1766298175947,0.03349802,88259.0,88251.0,0.11824]
[1766298176948,0.03349802,88259.0,88251.0,0.23462]
[1766298177690,0.03349802,88259.0,88252.0,0.11256]
[1766298184738,0.15963,88265.0,88252.0,0.11256]
[1766298185130,0.03404802,88264.0,88252.0,0.11256]
[1766298185331,0.03404802,88264.0,88253.0,0.00568]
[1766298185759,0.03404802,88264.0,88253.0,0.00603836]
[1766298186968,0.12109,88263.0,88253.0,0.00603836]
[1766298187598,0.03404802,88262.0,88253.0,0.00603836]
[1766298191802,0.03404802,88262.0,88255.0,0.23936]
[1766298192003,0.03404802,88262.0,88256.0,0.11977]
[1766298192235,0.03404802,88262.0,88257.0,0.11959]
[1766298194434,0.03404802,88262.0,88257.0,0.23936]
[1766298198436,0.02449739,88268.0,88257.0,0.23936]
[1766298198687,0.03404802,88265.0,88257.0,0.23936]
[1766298200705,0.03404802,88265.0,88258.0,0.11959]
[1766298200935,0.03404802,88265.0,88258.0,0.23936]
[1766298203312,0.03404802,88265.0,88258.0,0.11959]
[1766298205029,0.02449739,88268.0,88258.0,0.11959]
[1766298205232,0.12109,88269.0,88258.0,0.11959]
[1766298205429,0.03404802,88267.0,88258.0,0.11959]
[1766298217739,0.00568,88266.0,88258.0,0.11959]
[1766298236771,0.00568,88266.0,88258.0,0.13092041]
[1766298237175,0.00568,88266.0,88258.0,0.11959]
[1766298237955,0.00568,88266.0,88258.0,0.13092041]
[1766298238174,0.00568,88266.0,88258.0,0.11959]
[1766298238444,0.00568,88266.0,88258.0,0.13092041]
[1766298241032,0.00568,88266.0,88258.0,0.11959]
[1766298248114,0.00568,88266.0,88258.0,0.13092041]
[1766298249582,0.00568,88266.0,88258.0,0.11959]
[1766298249789,0.00568,88266.0,88258.0,0.13092041]
[1766298251734,0.00568,88266.0,88258.0,0.11959]
[1766298252230,0.00568,88266.0,88258.0,0.13092041]
[1766298253558,0.00568,88266.0,88258.0,0.11959]
[1766298254298,0.00568,88266.0,88259.0,0.01133028]
[1766298254515,0.00568,88266.0,88258.0,0.13092041]
[1766298255177,0.00568,88266.0,88258.0,0.11959]
[1766298255400,0.02449739,88268.0,88260.0,0.12398]
[1766298255673,0.00568,88267.0,88261.0,0.12021]
[1766298256859,0.03237045,88271.0,88263.0,0.12021]
[1766298257061,0.00568,88271.0,88266.0,0.24419]
[1766298257466,4.57e-06,88271.0,88267.0,0.12398]
[1766298257666,0.00568,88276.0,88267.0,0.24419]
[1766298258725,0.00568,88276.0,88271.0,0.01132874]
[1766298258917,0.12098,88283.0,88271.0,0.01132874]
[1766298258918,0.00568,88281.0,88271.0,0.24419]
[1766298260413,0.00568,88281.0,88272.0,0.01359434]
[1766298260952,0.00568,88281.0,88272.0,0.02492296]
[1766298261153,0.00568,88281.0,88272.0,0.01359434]
[1766298261398,0.00568,88281.0,88272.0,0.02492296]
[1766298261819,0.00568,88281.0,88272.0,0.01359434]
[1766298262666,0.00568,88281.0,88271.0,0.25551874]
[1766298263146,0.00568,88281.0,88272.0,0.01132862]
[1766298264251,0.00568,88281.0,88271.0,0.25551874]
[1766298264497,0.00568,88281.0,88272.0,0.01132862]
[1766298264667,0.00568,88281.0,88271.0,0.25551874]
[1766298264880,0.04536,88284.0,88271.0,0.25551874]
[1766298264881,0.04536,88284.0,88273.0,0.01132849]
[1766298265085,0.00568,88284.0,88275.0,0.01132823]
[1766298265291,0.00568,88286.0,88279.0,0.01132772]
[1766298265509,0.00568,88286.0,88280.0,0.01132759]
[1766298265724,0.00568,88286.0,88278.0,0.01132785]
[1766298266760,0.00568,88286.0,88279.0,0.01132772]
[1766298267004,0.00568,88286.0,88278.0,0.01168621]
[1766298267862,0.00568,88286.0,88278.0,0.00035836]
[1766298268038,0.00568,88286.0,88278.0,0.01168621]
[1766298268248,0.00568,88286.0,88278.0,0.00035836]
[1766298268768,0.00568,88286.0,88278.0,0.01168621]
[1766298269211,0.00568,88286.0,88278.0,0.00035836]
[1766298269994,0.00568,88286.0,88278.0,0.01168621]
[1766298270346,0.00568,88286.0,88279.0,0.01132772]
[1766298270574,0.00568,88286.0,88278.0,0.01168621]
[1766298271185,0.21391262,88297.0,88280.0,0.01132759]
[1766298271389,0.0340387,88294.0,88282.0,0.24419]
[1766298272003,0.1550187,88294.0,88282.0,0.24419]
[1766298272203,0.2625887,88294.0,88282.0,0.24419]
[1766298273470,0.12098,88293.0,88282.0,0.12398]
[1766298277125,0.23987592,88293.0,88282.0,0.12398]
[1766298277381,0.01132631,88290.0,88279.0,0.00568]
[1766298277588,0.12433,88290.0,88279.0,0.00568]
[1766298277722,0.13565631,88290.0,88279.0,0.00568]
[1766298277921,0.12433,88290.0,88279.0,0.00568]
[1766298281270,0.12433,88290.0,88279.0,0.00513]
[1766298283214,0.1138,88290.0,88279.0,0.00513]
[1766298283395,0.11865,88289.0,88279.0,0.00513]
[1766298288964,0.10812,88289.0,88279.0,0.00513]
[1766298289259,0.11865,88289.0,88279.0,0.00513]
[1766298289486,0.00568,88290.0,88279.0,0.00513]
[1766298289686,0.22677,88289.0,88279.0,0.00513]
[1766298289888,0.00568,88290.0,88279.0,0.00513]
[1766298290508,0.22677,88289.0,88279.0,0.00513]
[1766298290715,0.00568,88290.0,88279.0,0.00513]
[1766298291073,0.22677,88289.0,88279.0,0.00513]
[1766298291932,0.11865,88288.0,88279.0,0.00513]
[1766298293289,0.14314539,88288.0,88279.0,0.00513]
[1766298301415,0.20300544,88290.0,88279.0,0.00513]
[1766298301647,0.32232544,88290.0,88279.0,0.00513]
[1766298301984,0.11994,88289.0,88279.0,0.00513]
[1766298313410,0.1444464,88289.0,88279.0,0.00513]
[1766298329078,0.15577283,88289.0,88279.0,0.00513]
[1766298329294,0.01132656,88288.0,88279.0,0.00513]
[1766298329530,0.15477296,88288.0,88279.0,0.00513]
[1766298330475,0.01132669,88287.0,88279.0,0.00513]
[1766298330715,0.03583309,88287.0,88279.0,0.00513]
[1766298331328,0.0245064,88287.0,88279.0,0.00513]
[1766298331472,0.15477296,88288.0,88279.0,0.00513]
[1766298332594,0.1221,88287.0,88279.0,0.00513]
[1766298332933,0.1466064,88287.0,88279.0,0.00513]
[1766298343402,0.1460574,88287.0,88279.0,0.00513]
[1766298346373,0.01142605,88292.0,88279.0,0.00513]
[1766298346374,0.0001,88292.0,88282.0,0.11588]
[1766298346577,0.0001,88292.0,88284.0,0.11588]
[1766298346788,0.0001,88292.0,88284.0,0.12156]
[1766298347186,0.0001,88292.0,88285.0,0.01132502]
[1766298352148,0.12267,88292.0,88285.0,0.01077602]
[1766298352377,0.23726,88292.0,88285.0,0.01077602]
[1766298355240,0.23726,88292.0,88284.0,0.00568]
[1766298359675,0.24848682,88286.0,88278.0,0.00035836]
[1766298359837,0.12591695,88285.0,88278.0,0.00035836]
[1766298360036,0.12257,88284.0,88278.0,0.00035836]
[1766298361832,0.122021,88284.0,88278.0,0.00035836]
[1766298400289,0.122021,88284.0,88276.0,0.00051131]
[1766298400465,0.07364017,88287.0,88273.0,0.03403863]
[1766298400466,0.000511,88276.0,88273.0,0.03403863]
[1766298400650,0.000511,88276.0,88272.0,0.0001]
[1766298400850,0.011329,88269.0,88265.0,0.03404268]
[1766298401051,0.01132913,88268.0,88259.0,0.00568]
[1766298401272,0.22948,88268.0,88259.0,0.00568]
[1766298402153,0.24080913,88268.0,88259.0,0.00568]
[1766298402472,0.01132926,88267.0,88257.0,0.12490163]
[1766298402672,0.01132926,88267.0,88258.0,0.00568]
[1766298403079,0.01132939,88266.0,88258.0,0.00568]
[1766298403323,0.24080913,88268.0,88258.0,0.00568]
[1766298403479,0.01132926,88267.0,88257.0,0.12490163]
[1766298403692,0.24080913,88268.0,88257.0,0.12490163]
[1766298403918,0.24080913,88268.0,88258.0,0.00568]
[1766298404494,0.24080913,88268.0,88257.0,0.12490163]
[1766298404693,0.22948,88268.0,88258.0,0.00568]
[1766298404894,0.22948,88268.0,88257.0,0.12490163]
[1766298404895,0.24080913,88268.0,88257.0,0.12490163]
[1766298405168,0.24080913,88268.0,88258.0,0.00568]
[1766298405302,0.24080913,88268.0,88257.0,0.12490163]
[1766298405489,0.24080913,88268.0,88258.0,0.00568]
[1766298405702,0.01132926,88267.0,88258.0,0.00568]
[1766298405905,0.01132951,88265.0,88257.0,0.13058163]
[1766298406124,0.01132951,88265.0,88257.0,0.00595163]
[1766298406405,0.01132951,88265.0,88257.0,0.00027163]
[1766298407133,0.24080939,88266.0,88257.0,0.00027163]
[1766298409854,0.01132951,88265.0,88257.0,0.00027163]
[1766298410658,0.27190418,88284.0,88258.0,0.08160721]
[1766298410838,0.27190418,88284.0,88270.0,0.31668317]
[1766298410839,0.07364341,88283.0,88270.0,0.31668317]
[1766298411044,0.03404334,88280.0,88269.0,0.11929]
[1766298411216,0.00568,88283.0,88269.0,0.11929]
[1766298411217,0.01132733,88282.0,88269.0,0.24031]
[1766298411551,0.26920334,88283.0,88269.0,0.24031]
[1766298411717,0.22948,88281.0,88269.0,0.24031]
[1766298418516,0.22948,88282.0,88269.0,0.24031]
[1766298418720,0.03972334,88283.0,88269.0,0.12102]
[1766298418949,0.03972334,88283.0,88270.0,0.11929]
[1766298419864,0.05105054,88283.0,88270.0,0.24031]
[1766298420466,0.01132733,88282.0,88270.0,0.24035057]
[1766298420648,0.22948,88279.0,88270.0,4.057e-05]
[1766298420854,0.00568,88278.0,88270.0,4.057e-05]
[1766298422928,0.00568,88278.0,88271.0,0.24031]
[1766298451608,0.00568,88278.0,88270.0,0.01136944]
[1766298451808,0.00568,88278.0,88271.0,0.23463]
[1766298452211,0.00568,88278.0,88271.0,0.24595874]
[1766298452562,0.00568,88278.0,88271.0,0.23463]
[1766298452731,0.00568,88278.0,88271.0,0.24595874]
[1766298453064,0.00568,88278.0,88271.0,0.23463]
[1766298453873,0.00568,88278.0,88271.0,0.24595874]
[1766298454026,0.00568,88278.0,88271.0,0.23463]
[1766298454629,0.00568,88278.0,88271.0,0.24595874]
[1766298454920,0.00513,88278.0,88271.0,0.12102]
[1766298455051,0.00179275,88278.0,88272.0,0.11564]
[1766298455762,0.00179275,88278.0,88272.0,0.23666]
[1766298457120,0.00179275,88278.0,88271.0,0.01132874]
[1766298457424,2.75e-06,88278.0,88272.0,0.23487]
[1766298457650,2.75e-06,88278.0,88271.0,0.01132874]
[1766298457951,2.75e-06,88278.0,88272.0,0.23487]
[1766298458380,2.75e-06,88278.0,88271.0,0.01132874]
[1766298458552,2.75e-06,88278.0,88270.0,0.01136944]
[1766298458754,0.02447849,88287.0,88272.0,0.23487]
[1766298458966,0.01631675,88286.0,88276.0,0.0113281]
[1766298459098,0.01063675,88285.0,88278.0,0.23487]
[1766298459296,0.03059812,88288.0,88274.0,0.01132836]
[1766298459297,0.00568,88288.0,88280.0,0.11355]
[1766298459521,0.00568,88288.0,88280.0,0.113001]
[1766298461437,0.00568,88288.0,88281.0,0.11564]
[1766298461632,0.00568,88289.0,88276.0,0.1269681]
[1766298461935,0.00568,88289.0,88278.0,0.11564]
[1766298463685,0.00568,88289.0,88281.0,0.10164]
[1766298463893,0.00568,88289.0,88281.0,0.21728]
[1766298472797,0.00568,88289.0,88282.0,0.05890943]
[1766298473793,0.00568,88289.0,88282.0,0.00217821]
[1766298474673,0.00568,88289.0,88276.0,0.00568]
[1766298476764,0.0025,88289.0,88277.0,0.0867]
[1766298484342,0.01382643,88289.0,88277.0,0.0867]
[1766298484745,0.0025,88289.0,88277.0,0.0867]
[1766298484979,0.01382643,88289.0,88277.0,0.0867]
[1766298485562,0.0025,88289.0,88277.0,0.0867]
[1766298485986,0.01382643,88289.0,88277.0,0.0867]
[1766298486792,0.0025,88289.0,88277.0,0.0867]
[1766298487560,0.01382643,88289.0,88277.0,0.0867]
[1766298487981,0.01132669,88287.0,88277.0,0.0867]
[1766298488753,0.01132656,88288.0,88277.0,0.0867]
[1766298490959,0.01382643,88289.0,88277.0,0.0867]
[1766298491778,0.07045865,88289.0,88277.0,0.0867]
[1766298491977,0.0025,88289.0,88277.0,0.0867]
[1766298492970,0.0025,88289.0,88276.0,0.0170081]
[1766298493176,0.0025,88289.0,88279.0,0.0867]
[1766298493690,0.0001,88292.0,88280.0,0.0867]
[1766298493890,0.06132425,88306.0,88290.0,0.0867]
[1766298494095,0.01631187,88301.0,88290.0,0.0867]
[1766298494300,0.00568,88301.0,88290.0,0.0867]
[1766298494828,0.00568,88303.0,88289.0,0.0867]
[1766298495431,0.00568,88303.0,88288.0,0.01700656]
[1766298495631,0.00568,88303.0,88289.0,0.0867]
[1766298496113,0.00568,88303.0,88289.0,0.09802643]
[1766298496305,0.00568,88303.0,88289.0,0.0867]
[1766298496479,0.00568,88303.0,88289.0,0.09802643]
[1766298496680,0.00568,88303.0,88289.0,0.0867]
[1766298497316,0.00568,88303.0,88289.0,0.09802643]
[1766298497546,0.00568,88303.0,88289.0,0.0867]
[1766298498534,0.00568,88303.0,88289.0,0.09802643]
[1766298498737,0.00568,88303.0,88289.0,0.0867]
[1766298498940,0.00568,88303.0,88289.0,0.09802643]
[1766298499675,0.00568,88303.0,88289.0,0.0867]
[1766298500403,0.0113249,88301.0,88289.0,0.0867]
[1766298500610,0.01132502,88300.0,88289.0,0.0867]
[1766298500811,0.01132515,88299.0,88289.0,0.0867]
[1766298501050,0.1,88302.0,88289.0,0.0867]
[1766298501274,0.11132477,88302.0,88289.0,0.0867]
[1766298501443,0.1,88302.0,88289.0,0.0867]
[1766298501643,0.11132477,88302.0,88289.0,0.0867]
[1766298502598,0.1,88302.0,88289.0,0.0867]
[1766298503800,0.31657935,88300.0,88289.0,0.0867]
[1766298504394,0.31657935,88300.0,88288.0,0.00568]
[1766298504719,0.11274,88299.0,88288.0,0.00568]
[1766298505428,0.11274,88299.0,88288.0,0.09238]
[1766298517420,0.13721364,88299.0,88288.0,0.09238]
[1766298519903,0.18721364,88299.0,88288.0,0.09238]
[1766298520115,0.16274,88299.0,88288.0,0.09238]
[1766298521248,0.02448508,88298.0,88288.0,0.09238]
[1766298529103,0.02448508,88298.0,88288.0,0.0867]
[1766298529335,0.02448508,88298.0,88289.0,0.00568]
[1766298542389,0.2434,88297.0,88289.0,0.00568]
[1766298542577,0.02448508,88296.0,88289.0,0.00568]
[1766298542729,0.2434,88295.0,88281.0,0.01132746]
[1766298542931,0.2434,88297.0,88280.0,0.06796523]
[1766298543158,0.31661006,88290.0,88281.0,0.00568]
[1766298543473,0.2434,88289.0,88281.0,0.00568]
[1766298544243,0.2434,88289.0,88282.0,0.00568]
[1766298546963,0.01132618,88291.0,88283.0,0.00568]
[1766298547188,0.24623,88291.0,88283.0,0.00568]
[1766298547395,0.31661006,88292.0,88283.0,0.00568]
[1766298547612,0.01132579,88294.0,88283.0,0.00568]
[1766298548171,0.24623,88293.0,88283.0,0.00568]
[1766298548287,0.01132579,88294.0,88283.0,0.00568]
[1766298548489,0.24623,88293.0,88283.0,0.00568]
[1766298548690,0.01132579,88294.0,88283.0,0.00568]
[1766298548891,0.24623,88293.0,88283.0,0.00568]
[1766298549487,0.01132579,88294.0,88283.0,0.00568]
[1766298549750,0.1226,88293.0,88283.0,0.00568]
[1766298549922,0.12363,88290.0,88283.0,0.00568]
[1766298550128,0.01132566,88295.0,88283.0,0.00568]
[1766298550129,0.24623,88289.0,88283.0,0.00568]
[1766298550312,0.1226,88288.0,88283.0,0.00568]
[1766298550494,0.24623,88288.0,88283.0,0.00568]
[1766298553820,0.02265351,88295.0,88278.0,0.0226557]
[1766298554057,0.31661006,88290.0,88279.0,0.00568]
[1766298554277,0.24623,88289.0,88279.0,0.00568]
[1766298554501,0.31661006,88290.0,88279.0,0.00568]
[1766298554691,0.24623,88286.0,88279.0,0.00568]
[1766298555529,0.24623,88286.0,88280.0,0.00568]
[1766298556570,0.01132643,88289.0,88280.0,0.00568]
[1766298556777,0.01132656,88288.0,88279.0,0.00568]